bitfinex/quotes_SOLUSD_20250818
["timestamp","ask_amount","ask_price","bid_price","bid_amount"]
[1755537609161,4.33473716,184.12,184.08,44.49219901]
[1755537609337,0.69,184.11,184.09,0.03]
[1755537609536,0.69,184.11,184.1,39.06]
[1755537611142,4.55557778,184.18,184.1,50.19473435]
[1755537611143,0.69,184.15,184.1,50.19473435]
[1755537611339,4.33456358,184.14,184.11,5.70290383]
[1755537611565,0.69,184.13,184.12,39.04]
[1755537612574,10.03571286,184.13,184.12,39.04]
[1755537612763,6.39290383,184.13,184.12,39.04]
[1755537612954,0.69,184.13,184.12,39.04]
[1755537613341,0.69,184.13,184.12,44.47124049]
[1755537613972,6.39290383,184.13,184.09,0.03]
[1755537614141,5.70290383,184.1,184.09,0.03]
[1755537614338,5.70290383,184.1,184.07,0.03]
[1755537614564,5.70290383,184.08,184.03,39.06]
[1755537614741,5.70290383,184.04,184.03,39.06]
[1755537614944,6.39290383,184.04,184.03,39.06]
[1755537615254,6.39290383,184.04,184.01,39.08]
[1755537615466,6.39290383,184.03,184.01,39.08]
[1755537616072,0.69,184.02,184.01,39.08]
[1755537616245,5.70290383,184.03,184.01,39.08]
[1755537616445,9.65869462,184.02,184.01,39.08]
[1755537616647,9.65869462,184.02,183.96,8.27107299]
[1755537616844,8.96869462,183.97,183.95,39.06]
[1755537617262,9.65869462,183.98,183.95,44.49614719]
[1755537617457,9.65869462,183.97,183.95,39.06]
[1755537617677,0.69,183.96,183.95,39.06]
[1755537618071,0.69,183.96,183.92,126.37260341]
[1755537618373,8.96869462,183.95,183.92,126.37260341]
[1755537618672,9.65869462,183.95,183.92,39.06]
[1755537619372,8.96869462,183.96,183.93,5.43681197]
[1755537619575,9.65869462,183.97,183.94,5.63643745]
[1755537619953,9.65869462,183.97,183.95,39.06]
[1755537620171,8.96869462,183.97,183.95,39.06]
[1755537620367,0.69,183.96,183.95,39.06]
[1755537620574,3.63641814,184.01,183.95,39.06]
[1755537620575,9.65869462,183.98,183.95,39.06]
[1755537620963,0.69,183.97,183.95,39.06]
[1755537621357,9.65869462,183.96,183.95,39.06]
[1755537621951,8.96869462,183.98,183.95,39.06]
[1755537622154,8.96869462,183.98,183.95,44.49625985]
[1755537622459,9.65869462,184.01,183.96,9.64869462]
[1755537622759,0.69,184.01,183.97,9.64869462]
[1755537622972,0.69,184.01,183.98,39.08]
[1755537623172,0.69,184.01,183.99,5.43507799]
[1755537623363,9.65869462,184.03,183.99,5.43507799]
[1755537623962,8.96869462,184.03,183.99,5.43507799]
[1755537624159,9.65869462,184.02,183.98,44.51531462]
[1755537624975,0.69,184.01,183.98,44.51531462]
[1755537625577,8.96869462,184.02,183.98,44.51531462]
[1755537625771,8.96869462,184.02,183.98,45.19531462]
[1755537625970,0.69,184.01,183.98,44.51531462]
[1755537626166,8.96869462,183.99,183.98,39.08]
[1755537626369,0.69,184.01,183.98,39.04]
[1755537626669,9.65869462,184.01,183.98,39.04]
[1755537626870,8.96869462,184.0,183.98,39.04]
[1755537627070,8.96869462,184.01,183.98,39.72]
[1755537627270,8.96869462,184.01,183.98,45.1551876]
[1755537627771,8.96869462,184.01,183.98,39.04]
[1755537627969,9.65869462,184.0,183.98,39.04]
[1755537628981,9.65869462,183.99,183.98,39.04]
[1755537630489,8.96869462,184.0,183.98,39.04]
[1755537630803,8.96869462,184.02,183.98,45.15530579]
[1755537631185,9.65869462,184.02,183.98,45.15530579]
[1755537631701,8.96869462,184.01,183.98,45.15530579]
[1755537632008,26.0,184.05,183.98,39.04]
[1755537632217,0.69,184.0,183.98,39.04]
[1755537632380,5.43360139,184.04,183.98,39.04]
[1755537632578,0.69,184.02,183.98,44.47528067]
[1755537632778,0.69,184.04,183.98,45.15528067]
[1755537633595,8.96869462,183.99,183.94,22.6]
[1755537633883,8.96869462,183.97,183.95,39.02]
[1755537634087,8.96869462,183.98,183.95,39.02]
[1755537634288,8.96869462,183.98,183.95,39.7]
[1755537634686,8.96869462,183.99,183.96,6.11596434]
[1755537634886,8.96869462,184.0,183.96,5.43596434]
[1755537635090,8.96869462,183.99,183.95,44.45619161]
[1755537635286,9.03360137,184.02,183.96,0.68]
[1755537635500,32.12391344,184.03,183.96,9.64869462]
[1755537635692,8.96869462,184.0,183.96,0.68]
[1755537636380,8.96869462,184.0,183.97,6.115539]
[1755537636591,8.96869462,184.0,183.98,39.04]
[1755537636797,0.69,184.0,183.98,39.04]
[1755537637000,8.96869462,184.0,183.98,39.04]
[1755537639017,0.66,183.99,183.98,39.04]
[1755537639200,9.62869462,183.99,183.98,39.04]
[1755537639794,9.62869462,183.99,183.96,39.0]
[1755537640115,8.96869462,183.97,183.94,39.2]
[1755537640622,8.96869462,183.97,183.94,44.63655033]
[1755537640993,8.96869462,183.98,183.94,45.33655033]
[1755537641401,3.60321946,184.01,183.95,0.7]
[1755537641587,8.96869462,184.0,183.95,0.7]
[1755537641910,8.96869462,184.01,183.95,9.66869462]
[1755537642110,8.96869462,184.01,183.95,8.96869462]
[1755537642291,5.69305515,184.01,183.96,0.7]
[1755537642487,3.60321946,184.01,183.97,39.68]
[1755537642711,5.69305515,184.05,184.0,5.69305515]
[1755537642896,9.30324999,184.06,184.01,39.68]
[1755537643103,3.61019484,184.05,184.02,0.7]
[1755537643283,3.61019484,184.04,184.01,44.67305515]
[1755537643489,16.402095,184.09,184.04,5.43360139]
[1755537643490,3.61019484,184.07,184.04,5.43360139]
[1755537643848,0.06,184.09,184.05,45.35305515]
[1755537644124,0.06,184.09,184.05,39.06]
[1755537644125,4.27019484,184.08,184.05,39.06]
[1755537644292,3.61019484,184.07,184.05,39.06]
[1755537644617,3.61019484,184.06,184.05,39.06]
[1755537645220,3.61019484,184.07,184.05,39.06]
[1755537645397,3.61019484,184.06,184.05,39.06]
[1755537645719,13.23471648,184.08,184.05,39.06]
[1755537645912,4.27019484,184.07,184.05,39.06]
[1755537646089,3.61019484,184.06,184.05,39.06]
[1755537646415,3.61019484,184.08,184.05,44.49329917]
[1755537646600,3.61019484,184.07,184.05,44.49329917]
[1755537646921,3.61019484,184.06,184.05,39.06]
[1755537647490,4.27019484,184.06,184.05,39.06]
[1755537647705,4.27019484,184.06,184.02,8.96452164]
[1755537647706,4.27019484,184.06,184.03,39.1]
[1755537647913,3.61019484,184.05,184.03,39.08]
[1755537648225,3.61019484,184.04,184.03,39.08]
[1755537648840,3.61019484,184.04,184.03,39.78]
[1755537648998,3.61019484,184.04,184.03,48.74452164]
[1755537649198,5.27557778,184.09,184.03,48.74452164]
[1755537649514,7.66060593,184.08,184.05,14.3978278]
[1755537649700,3.6260351,184.07,184.06,9.66452164]
[1755537649902,3.6260351,184.07,184.06,0.7]
[1755537650420,3.6260351,184.07,184.05,39.1]
[1755537650624,3.6260351,184.06,184.05,39.1]
[1755537651193,3.6260351,184.06,184.05,48.06452164]
[1755537651625,7.66893725,184.06,184.05,53.4978278]
[1755537651829,3.6260351,184.06,184.05,48.06452164]
[1755537652126,3.6260351,184.06,184.05,39.1]
[1755537654628,22.72898429,184.06,184.0,8.96452164]
[1755537654833,12.88702946,184.05,184.01,39.1]
[1755537655011,7.67145168,184.04,184.01,39.8]
[1755537655219,7.67145168,184.03,184.02,0.7]
[1755537655818,7.67145168,184.03,184.01,44.53445568]
[1755537656117,3.6260351,184.02,184.01,39.1]
[1755537657226,7.67849663,184.02,184.01,39.1]
[1755537657543,3.6260351,184.02,184.01,39.1]
[1755537658545,3.6260351,184.02,184.01,54.19900889]
[1755537659049,0.06,184.11,184.02,15.10621557]
[1755537659221,0.06,184.11,184.08,8.96452164]
[1755537659420,0.06,184.11,184.08,48.08452164]
[1755537659639,0.06,184.11,184.08,48.78452164]
[1755537659835,0.06,184.11,184.08,54.21694232]
[1755537663450,0.06,184.11,184.08,69.32315789]
[1755537663656,1e-08,184.09,184.08,78.28767953]
[1755537663836,1e-08,184.09,184.08,69.32315789]
[1755537664037,1e-08,184.09,184.08,91.72315789]
[1755537666656,1e-08,184.09,184.08,76.61694232]
[1755537667460,1e-08,184.09,184.08,85.58146396]
[1755537667640,1e-08,184.09,184.08,76.61694232]
[1755537667961,1e-08,184.09,184.08,54.21694232]
[1755537668155,1e-08,184.09,184.08,54.19694232]
[1755537668460,1e-08,184.09,184.08,50.91596542]
[1755537670159,1e-08,184.09,184.08,45.23242068]
[1755537670361,1e-08,184.09,184.08,50.91596542]
[1755537673661,1e-08,184.09,184.08,66.02218099]
[1755537674877,0.06,184.11,184.1,26.0]
[1755537675160,0.06,184.11,184.1,70.70354474]
[1755537675366,0.06,184.11,184.1,71.38354474]
[1755537675658,0.06,184.11,184.1,76.81537526]
[1755537677862,0.06,184.13,184.11,15.10621557]
[1755537678172,0.77428504,184.22,184.13,15.10621557]
[1755537678173,0.71,184.18,184.13,15.10621557]
[1755537678338,0.71,184.18,184.17,5.68354474]
[1755537678664,0.71,184.2,184.17,44.66354474]
[1755537678964,0.71,184.2,184.19,5.68354474]
[1755537679167,0.71,184.2,184.19,44.64354474]
[1755537679663,0.71,184.2,184.19,38.96]
[1755537679866,0.71,184.2,184.19,44.64354474]
[1755537680162,0.71,184.2,184.19,50.07272113]
[1755537680368,0.71,184.2,184.19,44.38917639]
[1755537680544,0.71,184.2,184.19,50.07272113]
[1755537683267,0.71,184.2,184.19,44.38917639]
[1755537683476,0.71,184.2,184.14,5.68354474]
[1755537683477,6.39354474,184.2,184.14,5.68354474]
[1755537683648,0.71,184.19,184.15,38.96]
[1755537684041,0.71,184.19,184.16,5.68354474]
[1755537684286,0.71,184.19,184.17,38.96]
[1755537685671,5.68354474,184.18,184.13,5.68354474]
[1755537685870,0.71,184.17,184.14,38.94]
[1755537686043,0.71,184.17,184.05,27.16541349]
[1755537686044,5.68354474,184.15,184.1,5.68354474]
[1755537686254,0.71,184.14,184.1,5.68354474]
[1755537686550,0.71,184.14,184.11,38.94]
[1755537687350,0.71,184.13,184.11,38.94]
[1755537687746,6.39354474,184.12,184.06,0.03]
[1755537688053,9.31657591,184.11,184.07,38.92]
[1755537688253,0.71,184.1,184.07,38.92]
[1755537688447,0.71,184.09,184.07,38.92]
[1755537688657,0.71,184.08,184.06,0.03]
[1755537689057,0.71,184.07,184.06,0.03]
[1755537689854,4.34303117,184.1,184.06,5.71354474]
[1755537690061,0.71,184.09,184.07,38.94]
[1755537690262,0.71,184.09,184.08,5.68354474]
[1755537690451,3.63303117,184.14,184.08,6.36354474]
[1755537690649,3.63303117,184.13,184.1,5.68354474]
[1755537690889,3.63303117,184.14,184.12,5.68354474]
[1755537691177,0.71,184.15,184.13,5.68354474]
[1755537691486,0.71,184.15,184.12,44.55122858]
[1755537691679,0.71,184.15,184.13,5.68354474]
[1755537691877,0.71,184.15,184.12,44.55122858]
[1755537691878,0.71,184.14,184.12,39.12]
[1755537692046,0.71,184.14,184.09,5.43211347]
[1755537692047,0.71,184.14,184.09,5.68354474]
[1755537692247,5.68354474,184.11,184.08,39.36]
[1755537692467,0.71,184.1,184.08,39.36]
[1755537692654,6.39354474,184.1,184.08,39.36]
[1755537692850,0.71,184.09,184.08,39.36]
[1755537693051,10.02657591,184.09,184.06,0.03]
[1755537693268,5.68354474,184.07,184.06,0.03]
[1755537693459,9.31657591,184.07,184.06,0.03]
[1755537693660,10.02657591,184.07,184.06,0.03]
[1755537694172,14.06964733,184.07,184.06,0.03]
[1755537694778,18.62522511,184.07,184.06,0.03]
[1755537694968,26.0,184.05,184.04,0.03]
[1755537695166,44.79295349,184.05,184.04,0.03]
[1755537695381,49.34204282,184.05,184.04,0.03]
[1755537695673,39.81940875,184.05,184.04,0.03]
[1755537695862,41.45988207,184.05,184.04,0.03]
[1755537696067,4.34303117,184.05,184.04,0.03]
[1755537696269,3.63303117,184.06,184.04,0.03]
[1755537696575,4.34303117,184.07,184.04,0.03]
[1755537696878,4.34303117,184.06,184.04,0.03]
[1755537697075,12.59765431,184.05,184.04,0.03]
[1755537697377,18.74096047,184.05,184.04,0.03]
[1755537697876,9.77633733,184.05,184.04,0.03]
[1755537698063,18.74096047,184.05,184.04,0.03]
[1755537699063,48.77986017,184.05,184.04,0.03]
[1755537699853,53.3289495,184.05,184.04,0.03]
[1755537700068,53.32773607,184.05,184.04,0.03]
[1755537700586,27.32773607,184.05,184.04,0.03]
[1755537701083,42.43395164,184.05,184.04,1e-08]
[1755537701282,37.88486231,184.05,184.04,1e-08]
[1755537701661,33.84717604,184.05,184.04,1e-08]
[1755537701855,24.95506881,184.05,184.04,1e-08]
[1755537702056,53.31484942,184.05,184.04,1e-08]
[1755537702379,66.67484942,184.05,184.04,1e-08]
[1755537702681,66.67331872,184.05,184.04,1e-08]
[1755537703260,77.24045168,184.05,184.04,1e-08]
[1755537703772,26.0,184.03,184.02,0.03]
[1755537704079,42.63092995,184.03,184.02,0.03]
[1755537704262,42.63092995,184.03,184.01,0.03]
[1755537704263,8.96462314,184.02,184.01,0.03]
[1755537704462,17.35092995,184.02,184.01,0.03]
[1755537704656,15.10621557,184.01,183.99,0.03]
[1755537704963,10.0,183.99,183.98,1e-08]
[1755537705164,16.63092995,183.99,183.98,1e-08]
[1755537705480,32.78600794,183.99,183.98,1e-08]
[1755537705784,26.0,183.96,183.94,0.2]
[1755537705980,82.03092995,183.96,183.94,0.2]
[1755537706150,82.75092995,183.96,183.94,0.2]
[1755537706685,93.82386988,183.96,183.94,0.2]
[1755537706857,22.28227745,183.95,183.94,0.2]
[1755537707188,22.28227745,183.95,183.92,0.03]
[1755537707189,25.10621557,183.94,183.92,0.03]
[1755537707388,10.0,183.89,183.81,0.67]
[1755537707565,10.0,183.89,183.78,0.03]
[1755537707566,26.0,183.86,183.78,0.03]
[1755537707777,74.40462314,183.85,183.78,0.03]
[1755537708096,78.74466951,183.85,183.78,0.03]
[1755537708381,38.58466951,183.85,183.81,0.67]
[1755537708677,78.02466951,183.85,183.81,0.67]
[1755537709263,78.74466951,183.85,183.78,0.7]
[1755537709475,84.18388626,183.85,183.78,0.7]
[1755537710491,84.18388626,183.85,183.79,0.7]
[1755537711086,75.21926312,183.85,183.79,0.7]
[1755537711294,26.0,183.87,183.84,0.7]
[1755537711591,14.40383989,183.85,183.84,0.03]
[1755537711790,5.43898668,183.86,183.84,0.03]
[1755537711966,8.96462314,183.86,183.84,0.7]
[1755537712164,8.96462314,183.85,183.84,0.03]
[1755537713172,26.0,183.85,183.84,0.7]
[1755537713382,14.40334681,183.87,183.84,0.7]
[1755537713687,8.96462314,183.86,183.84,0.7]
[1755537714692,14.40364066,183.86,183.84,0.7]
[1755537714883,8.96462314,183.85,183.84,0.03]
[1755537715293,8.96462314,183.87,183.84,0.7]
[1755537715494,8.96462314,183.87,183.85,0.67]
[1755537715697,26.0,183.89,183.86,0.67]
[1755537715887,8.96462314,183.89,183.87,0.67]
[1755537716201,8.96462314,183.88,183.85,0.67]
[1755537716502,8.96462314,183.88,183.86,0.67]
[1755537717009,31.43809666,183.89,183.86,0.67]
[1755537717707,19.52501183,183.95,183.87,0.67]
[1755537717907,39.52,183.94,183.87,9.63462314]
[1755537718079,9.02462314,183.92,183.87,8.96462314]
[1755537718421,0.06,183.92,183.88,0.67]
[1755537718616,0.06,183.92,183.89,8.96462314]
[1755537718804,0.06,183.92,183.9,0.67]
[1755537719311,0.06,183.92,183.91,0.67]
[1755537721117,0.06,183.92,183.91,15.07206536]
[1755537721285,0.06,183.92,183.91,9.63462314]
[1755537721602,0.06,183.92,183.91,15.07206536]
[1755537723190,0.06,183.92,183.88,9.63462314]
[1755537723379,0.06,183.92,183.89,0.67]
[1755537723586,0.06,183.92,183.91,8.96462314]
[1755537723796,0.06,183.92,183.91,9.63462314]
[1755537724004,0.06,183.92,183.91,0.67]
[1755537724308,0.06,183.92,183.89,0.67]
[1755537724483,8.96462314,183.9,183.84,0.7]
[1755537724815,8.96462314,183.87,183.84,0.7]
[1755537725521,8.96462314,183.89,183.85,0.67]
[1755537725722,8.96462314,183.9,183.86,0.67]
[1755537726021,8.96462314,183.91,183.87,0.67]
[1755537726330,8.96462314,183.88,183.84,0.7]
[1755537726484,8.96462314,183.86,183.84,0.03]
[1755537726790,8.96462314,183.85,183.84,0.03]
[1755537726992,5.43837298,183.88,183.84,0.03]
[1755537727176,14.40299612,183.88,183.84,0.7]
[1755537727383,8.96462314,183.88,183.84,0.7]
[1755537728390,8.96462314,183.89,183.85,0.69]
[1755537730022,8.96462314,183.88,183.85,0.69]
[1755537730235,8.96462314,183.87,183.84,0.03]
[1755537731337,12.56364032,183.88,183.84,0.72]
[1755537731532,3.59901718,183.89,183.85,0.69]
[1755537731695,7.61377452,183.88,183.85,0.69]
[1755537731894,3.59901718,183.88,183.86,0.69]
[1755537732095,3.59901718,183.88,183.85,0.69]
[1755537732302,3.59901718,183.87,183.86,0.69]
[1755537732504,4.49368227,183.91,183.84,0.03]
[1755537732505,12.56364032,183.89,183.84,0.03]
[1755537732710,8.96462314,183.89,183.84,0.72]
[1755537732905,12.56364032,183.89,183.84,0.03]
[1755537733105,12.56364032,183.89,183.85,0.69]
[1755537733306,12.56364032,183.89,183.85,6.12919272]
[1755537734515,3.59901718,183.88,183.85,5.43919272]
[1755537734716,3.59901718,183.9,183.86,0.69]
[1755537735029,3.59901718,183.89,183.86,9.65462314]
[1755537735195,3.59901718,183.9,183.87,0.69]
[1755537735395,3.59901718,183.89,183.87,0.69]
[1755537735595,3.59901718,183.91,183.88,9.65462314]
[1755537735829,3.59901718,183.9,183.89,0.69]
[1755537736004,3.59901718,183.91,183.89,0.69]
[1755537736205,3.59901718,183.9,183.86,39.46]
[1755537736405,3.59901718,183.89,183.86,39.46]
[1755537736708,3.59901718,183.91,183.87,6.12862511]
[1755537736919,3.59901718,183.9,183.89,8.96462314]
[1755537737095,3.59901718,183.9,183.89,9.65462314]
[1755537737299,3.59901718,183.9,183.89,0.69]
[1755537737936,3.59901718,183.9,183.89,6.1280336]
[1755537738109,3.59901718,183.91,183.89,15.09265674]
[1755537738425,0.06,183.92,183.9,0.69]
[1755537738612,3.63204912,183.91,183.9,0.69]
[1755537739000,0.06,183.92,183.9,0.69]
[1755537739231,0.06,183.92,183.91,8.96462314]
[1755537739521,3.69375089,183.92,183.91,9.65462314]
[1755537740100,3.69375089,183.92,183.91,15.09206536]
[1755537740723,0.06,183.92,183.91,54.47206536]
[1755537742836,0.06,183.94,183.91,54.47206536]
[1755537743134,0.06,183.94,183.93,8.96462314]
[1755537743512,0.06,183.94,183.93,9.65462314]
[1755537744217,0.06,183.94,183.93,15.09147411]
[1755537745208,0.06,183.94,183.93,6.12685097]
[1755537745423,0.06,183.94,183.93,15.09147411]
[1755537745628,1e-08,183.94,183.93,15.09147411]
[1755537746035,1e-08,183.94,183.93,30.19768968]
[1755537746422,1e-08,183.94,183.93,56.19768968]
[1755537746742,1e-08,183.94,183.93,78.59768968]
[1755537747611,1e-08,183.94,183.91,8.96462314]
[1755537747911,0.71,183.93,183.92,39.3]
[1755537748327,0.71,183.93,183.91,5.43721352]
[1755537748328,0.71,183.93,183.88,9.65462314]
[1755537748531,8.96462314,183.92,183.89,39.3]
[1755537748719,0.71,183.91,183.89,39.3]
[1755537749750,3.63753861,183.93,183.89,48.26462314]
[1755537749927,0.71,183.93,183.89,48.26462314]
[1755537750129,0.71,183.92,183.89,39.3]
[1755537750613,0.71,183.91,183.89,39.3]
[1755537750813,3.63753861,183.93,183.89,39.3]
[1755537751014,0.71,183.93,183.89,39.3]
[1755537751447,1e-08,183.94,183.89,54.39259468]
[1755537751642,0.71000001,183.94,183.89,54.39259468]
[1755537752142,0.71000001,183.94,183.9,8.96462314]
[1755537752314,0.71000001,183.94,183.91,5.43744222]
[1755537752626,0.71000001,183.94,183.92,39.3]
[1755537753216,0.71,183.93,183.92,39.3]
[1755537753442,9.67462314,183.93,183.87,8.96462314]
[1755537753647,0.71,183.92,183.88,39.3]
[1755537753853,0.71,183.92,183.88,48.26462314]
[1755537754132,1e-08,183.94,183.89,9.65462314]
[1755537754348,0.71000001,183.94,183.9,5.4377379]
[1755537754531,0.71000001,183.94,183.91,39.3]
[1755537754728,1e-08,183.94,183.91,39.99]
[1755537755033,1e-08,183.94,183.91,39.3]
[1755537755719,0.71,183.93,183.91,39.3]
[1755537756041,9.67462314,183.92,183.91,39.28]
[1755537756224,9.67462314,183.92,183.86,14.43346376]
[1755537756423,9.67462314,183.92,183.87,48.24462314]
[1755537756834,0.71,183.92,183.88,0.69]
[1755537757046,0.71,183.92,183.87,48.24462314]
[1755537757243,0.71,183.92,183.87,48.93462314]
[1755537757624,0.71,183.92,183.87,39.97]
[1755537758543,0.71,183.92,183.88,5.43832934]
[1755537759434,3.63997761,183.94,183.91,8.96462314]
[1755537759639,3.63997761,183.94,183.93,8.96462314]
[1755537760029,1e-08,183.94,183.93,8.96462314]
[1755537760429,1e-08,183.94,183.93,9.63462314]
[1755537760646,1e-08,183.94,183.93,15.07147411]
[1755537761144,1e-08,183.94,183.93,30.17768968]
[1755537763976,1e-08,183.94,183.93,15.07147411]
[1755537764151,1e-08,183.94,183.93,48.18462314]
[1755537764744,1e-08,183.94,183.93,53.62147411]
[1755537766140,1e-08,183.94,183.93,54.29147411]
[1755537767720,1e-08,183.94,183.93,69.39768968]
[1755537768143,1e-08,183.94,183.93,95.39768968]
[1755537768740,1e-08,183.96,183.94,15.10621557]
[1755537768993,1e-08,183.97,183.96,15.10621557]
[1755537769128,1e-08,183.97,183.96,51.90680305]
[1755537769330,1e-08,183.97,183.96,52.57680305]
[1755537769732,1e-08,183.97,183.96,78.57680305]
[1755537774145,0.66,184.06,183.96,92.1667139]
[1755537774335,0.66,184.06,183.99,24.07083871]
[1755537774536,0.66,184.06,183.99,63.25083871]
[1755537774747,0.66,184.06,183.99,63.92083871]
[1755537775282,0.66,184.06,183.99,69.3559167]
[1755537776087,0.66,184.06,183.99,82.94361168]
[1755537776390,0.66,184.06,184.05,8.96462314]
[1755537776571,0.66,184.07,184.05,48.12462314]
[1755537776884,0.66,184.06,184.05,48.12462314]
[1755537777270,3.7399776,184.1,184.05,53.55788733]
[1755537777473,0.66,184.08,184.06,8.96462314]
[1755537777791,3.7399776,184.1,184.07,39.14]
[1755537778366,0.66,184.09,184.07,39.14]
[1755537778575,3.7399776,184.1,184.07,39.14]
[1755537778786,0.66,184.09,184.07,39.14]
[1755537779068,0.66,184.08,184.07,39.14]
[1755537779884,0.66,184.08,184.07,48.10462314]
[1755537780402,0.66,184.08,184.07,39.14]
[1755537780778,3.7399776,184.1,184.07,44.82667585]
[1755537780977,0.66,184.09,184.07,50.2593621]
[1755537781906,3.7399776,184.1,184.08,5.68667585]
[1755537782110,0.1,184.1,184.09,44.78667585]
[1755537783410,0.1,184.1,184.09,50.21880144]
[1755537783895,0.1,184.1,184.09,50.88880144]
[1755537788592,0.1,184.1,184.09,45.20212559]
[1755537789021,0.1,184.1,184.09,67.60212559]
[1755537789215,0.1,184.1,184.09,73.28880144]
[1755537789411,0.1,184.1,184.09,72.61880144]
[1755537790209,0.1,184.1,184.09,73.28880144]
[1755537791584,0.76,184.1,184.09,27.83212559]
[1755537791893,0.76,184.1,184.09,72.53880144]
[1755537792592,0.76,184.1,184.09,61.42]
[1755537795101,0.76,184.1,184.09,39.02]
[1755537795783,6.19183052,184.1,184.04,5.43356799]
[1755537796088,0.66,184.09,184.06,5.68667585]
[1755537796285,0.1,184.1,184.07,39.02]
[1755537796286,0.66,184.08,184.07,39.02]
[1755537796792,6.34667585,184.08,184.0,39.86]
[1755537797107,6.34667585,184.08,184.01,39.02]
[1755537797108,5.68667585,184.04,184.01,39.02]
[1755537797414,0.66,184.03,184.01,39.02]
[1755537798810,11.11995246,184.06,184.01,44.70667585]
[1755537798811,0.66,184.05,184.01,44.70667585]
[1755537798989,0.66,184.07,184.04,5.68667585]
[1755537799190,0.66,184.07,184.05,39.02]
[1755537799783,4.28868326,184.09,184.05,39.02]
[1755537799986,9.31535911,184.09,184.05,39.02]
[1755537800293,6.34667585,184.08,184.05,39.02]
[1755537800495,0.66,184.07,184.05,39.02]
[1755537801186,0.66,184.09,184.05,39.02]
[1755537801487,6.34667585,184.09,184.05,39.02]
[1755537801703,5.68667585,184.09,184.05,39.02]
[1755537801907,0.66,184.08,184.05,39.02]
[1755537802112,5.68667585,184.09,184.05,39.02]
[1755537802296,0.66,184.07,184.05,39.02]
[1755537802614,0.66,184.06,184.05,39.02]
[1755537803108,6.34667585,184.06,184.0,39.19]
[1755537803316,0.66,184.06,184.01,44.68667585]
[1755537803488,4.28868326,184.06,184.02,5.68667585]
[1755537803689,9.92598301,184.09,184.04,5.68667585]
[1755537803690,3.62868326,184.08,184.04,5.68667585]
[1755537803896,9.720984,184.09,184.05,39.0]
[1755537804098,0.66,184.08,184.05,39.0]
[1755537804813,0.66,184.07,184.05,39.0]
[1755537805012,3.62868326,184.07,184.05,39.0]
[1755537805213,4.28868326,184.06,184.05,39.0]
[1755537805517,0.66,184.06,184.05,39.0]
[1755537805714,4.28868326,184.06,184.05,39.0]
[1755537805885,9.97535911,184.06,184.05,39.0]
[1755537806093,14.02135917,184.06,184.05,39.0]
[1755537806318,18.51504144,184.06,184.05,39.0]
[1755537806611,14.02135917,184.06,184.05,39.0]
[1755537806823,19.45437014,184.06,184.05,39.0]
[1755537807183,23.94805241,184.06,184.05,39.0]
[1755537808417,23.94805241,184.06,184.03,39.0]
[1755537808715,5.68667585,184.04,184.03,39.0]
[1755537808895,15.4089605,184.04,184.03,39.0]
[1755537809210,19.45714487,184.04,184.03,39.0]
[1755537809416,23.95082714,184.04,184.0,0.03]
[1755537809618,5.68667585,184.01,184.0,0.03]
[1755537809799,13.36570774,184.01,184.0,0.03]
[1755537810117,14.02570774,184.01,184.0,0.03]
[1755537811094,19.46019499,184.01,184.0,0.03]
[1755537812699,15.40984636,184.01,184.0,0.03]
[1755537813724,5.68667585,184.02,184.0,0.03]
[1755537813898,9.31535911,184.02,184.0,0.03]
[1755537814216,5.68667585,184.02,184.0,0.03]